Workbook

Sheet Sheet1
A1: 序号 | B1: 班级 | C1: 学号 | D1: 姓名 | E1: 德育总成绩 | F1: 智育成绩 | G1: 体育成绩 | H1: 必修课优良率 | I1: 必修课成绩 | J1: 选修课成绩 | K1: 课程成绩 | L1: 综测成绩 | M1: 综测排名
A2: 80 | B2: 化工21-3班 | C2: 2021010454 | D2: 黄凯涵 | E2: 107.18 | F2: 123.7186047 | G2: 90.52 | H2: 100.00% | I2: 90.52325581 | J2: 89 | K2: 90.21860465 | L2: 117.0910233 | M2: 1
A3: 92 | B3: 化工21-3班 | C3: 2021010520 | D3: 刘益安 | E3: 107.4 | F3: 112.4439024 | G3: 80.02 | H3: 100.00% | I3: 89.80487805 | J3: 93 | K3: 90.44390244 | L3: 108.1927317 | M3: 2
A4: 18 | B4: 化工21-2班 | C4: 2021010416 | D4: 刘庆炽 | E4: 114.4241935 | F4: 107.695122 | G4: 84.58 | H4: 100.00% | I4: 89.24390244 | J4: 84 | K4: =I4*0.8+J4*0.2 -> 88.19512195 | L4: 106.7294241 | M4: 3
A5: 53 | B5: 化工21-1班 | C5: 2021010473 | D5: 朱家玉 | E5: 103.41875 | F5: 111.1552381 | G5: 80.32 | H5: 100.00% | I5: 90.11904762 | J5: 92.8 | K5: 90.6552381 | L5: 106.5244167 | M5: 4
A6: 5 | B6: 化工21-2班 | C6: 2021010397 | D6: 林楚媛 | E6: 126.6715054 | F6: 98.5195122 | G6: 97.36 | H6: 55.00% | I6: 76.52439024 | J6: 81.5 | K6: =I6*0.8+J6*0.2 -> 77.5195122 | L6: 104.0339596 | M6: 5
A7: 38 | B7: 化工21-1班 | C7: 2021010370 | D7: 闫晨琛 | E7: 115.46875 | F7: 102.7619048 | G7: 82.24 | H7: 100.00% | I7: 89.95238095 | J7: 91.5 | K7: 90.26190476 | L7: =E7*0.2+F7*0.7+G7*0.1 -> 103.2510833 | M7: 6
A8: 36 | B8: 化工21-1班 | C8: 2021010367 | D8: 余燕伶 | E8: 108.41875 | F8: 102.307619 | G8: 95.52 | H8: 100.00% | I8: 90.05952381 | J8: 88.8 | K8: 89.80761905 | L8: 102.8510833 | M8: 7
A9: 14 | B9: 化工21-2班 | C9: 2021010408 | D9: 张梦涵 | E9: 118.0854839 | F9: 96.01056911 | G9: 114.68 | H9: 90.00% | I9: 85.30487805 | J9: 83 | K9: =I9*0.8+J9*0.2 -> 84.84390244 | L9: 102.2924952 | M9: 8
A10: 79 | B10: 化工21-3班 | C10: 2021010453 | D10: 池双佑 | E10: 108.04 | F10: 102.6285714 | G10: 82.84 | H10: 85.71% | I10: 86.03571429 | J10: 84 | K10: 85.62857143 | L10: 101.732 | M10: 9
A11: 86 | B11: 化工21-3班 | C11: 2021010497 | D11: 郭飞扬 | E11: 113.7466667 | F11: 97.37723577 | G11: 102.48 | H11: 75.00% | I11: 82.80487805 | J11: 89 | K11: 84.04390244 | L11: 101.1613984 | M11: 10
A12: 34 | B12: 化工21-1班 | C12: 2021010365 | D12: 魏雯静 | E12: 108.26875 | F12: 95.4952381 | G12: 82.24 | H12: 100.00% | I12: 88.36904762 | J12: 94 | K12: 89.4952381 | L12: 96.72441667 | M12: 11
A13: 32 | B13: 化工21-2班 | C13: 2021010518 | D13: 康歆宇 | E13: 105.7903226 | F13: 94.94494774 | G13: 81.84 | H13: 85.00% | I13: 83.1097561 | J13: 82.28571429 | K13: =I13*0.8+J13*0.2 -> 82.94494774 | L13: 95.80352793 | M13: 12
A14: 27 | B14: 化工21-2班 | C14: 2021010510 | D14: 侯拓阳 | E14: 106.1935484 | F14: 94.42243902 | G14: 84.58 | H14: 95.00% | I14: 86.87804878 | J14: 79.6 | K14: =I14*0.8+J14*0.2 -> 85.42243902 | L14: 95.79241699 | M14: 13
A15: 95 | B15: 化工21-3班 | C15: 2021010609 | D15: 陈毅闽 | E15: 107.14 | F15: 93.94193548 | G15: 79.24 | H15: 87.50% | I15: 85.67741935 | J15: 87 | K15: 85.94193548 | L15: 95.11135484 | M15: 14
A16: 88 | B16: 化工21-3班 | C16: 2021010500 | D16: 齐嘉莹 | E16: 103.1 | F16: 93.75943775 | G16: 88.38 | H16: 90.48% | I16: 85.24096386 | J16: 85.33333333 | K16: 85.25943775 | L16: 95.08960643 | M16: 15
A17: 68 | B17: 化工21-3班 | C17: 2021010436 | D17: 李佳蕊 | E17: 105.6266667 | F17: 92.35365854 | G17: 86.94 | H17: 80.00% | I17: 82.31707317 | J17: 80 | K17: 81.85365854 | L17: 94.46689431 | M17: 16
A18: 52 | B18: 化工21-1班 | C18: 2021010472 | D18: 汪涵伊 | E18: 113.01875 | F18: 88.56571429 | G18: 92.86 | H18: 90.00% | I18: 84.85714286 | J18: 83.4 | K18: 84.56571429 | L18: =E18*0.2+F18*0.7+G18*0.1 -> 93.88575 | M18: 17
A19: 84 | B19: 化工21-3班 | C19: 2021010474 | D19: 张金泽 | E19: 99.6 | F19: 94.18243902 | G19: 77.8 | H19: 90.00% | I19: 86.87804878 | J19: 93.4 | K19: 88.18243902 | L19: 93.62770732 | M19: 18
A20: 51 | B20: 化工21-1班 | C20: 2021010469 | D20: 李晓娇 | E20: 111.0854167 | F20: 90.19428571 | G20: 81.28 | H20: 90.00% | I20: 85.89285714 | J20: 87.4 | K20: 86.19428571 | L20: 93.48108333 | M20: 19
A21: 45 | B21: 化工21-1班 | C21: 2021010385 | D21: 界绪森 | E21: 104.91875 | F21: 90.66666667 | G21: 81.72 | H21: 90.00% | I21: 83.33333333 | J21: 90 | K21: 84.66666667 | L21: 92.62241667 | M21: 20
A22: 13 | B22: 化工21-2班 | C22: 2021010407 | D22: 杨雯婷 | E22: 106.116129 | F22: 85.49756098 | G22: 109.18 | H22: 70.00% | I22: 83.12195122 | J22: 80 | K22: =I22*0.8+J22*0.2 -> 82.49756098 | L22: 91.98951849 | M22: 21
A23: 91 | B23: 化工21-3班 | C23: 2021010519 | D23: 李春霖 | E23: 108.18 | F23: 87.4097561 | G23: 77.56 | H23: 75.00% | I23: 82.51219512 | J23: 77 | K23: 81.4097561 | L23: 90.57882927 | M23: 22
A24: 11 | B24: 化工21-2班 | C24: 2021010404 | D24: 郭昕苑 | E24: 103.4225806 | F24: 88.3804878 | G24: 77.8 | H24: 90.00% | I24: 84.47560976 | J24: 74 | K24: =I24*0.8+J24*0.2 -> 82.3804878 | L24: 90.33085759 | M24: 23
A25: 50 | B25: 化工21-1班 | C25: 2021010468 | D25: 王彩雲 | E25: 103.01875 | F25: 86.41333333 | G25: 89.02 | H25: 95.00% | I25: 86.91666667 | J25: 84.4 | K25: 86.41333333 | L25: 89.99508333 | M25: 24
A26: 9 | B26: 化工21-2班 | C26: 2021010401 | D26: 宋思雨 | E26: 108.8258065 | F26: 86.36097561 | G26: 77.44 | H26: 65.00% | I26: 77.45121951 | J26: 82 | K26: =I26*0.8+J26*0.2 -> 78.36097561 | L26: 89.96184422 | M26: 25
A27: 66 | B27: 化工21-3班 | C27: 2021010434 | D27: 何丹丹 | E27: 102.94 | F27: 87.45853659 | G27: 81.52 | H27: 70.00% | I27: 82.57317073 | J27: 87 | K27: 83.45853659 | L27: 89.96097561 | M27: 26
A28: 31 | B28: 化工21-2班 | C28: 2021010517 | D28: 胡海峰 | E28: 103.7903226 | F28: 87.1302439 | G28: 81.76 | H28: 90.00% | I28: 83.98780488 | J28: 77.2 | K28: =I28*0.8+J28*0.2 -> 82.6302439 | L28: 89.92523525 | M28: 27
A29: 65 | B29: 化工21-1班 | C29: 2021010629 | D29: 张添棋 | E29: 99.91875 | F29: 87.4 | G29: 85.36 | H29: 95.45% | I29: 87.25 | J29: 88 | K29: 87.4 | L29: 89.69975 | M29: 28
A30: 72 | B30: 化工21-3班 | C30: 2021010441 | D30: 张伊蕊 | E30: 103 | F30: 87.40731707 | G30: 78.4 | H30: 65.00% | I30: 82.63414634 | J30: 94 | K30: 84.90731707 | L30: 89.62512195 | M30: 29
A31: 35 | B31: 化工21-1班 | C31: 2021010366 | D31: 廖安安 | E31: 107.41875 | F31: 86.06666667 | G31: 76.84 | H31: 90.00% | I31: 85.33333333 | J31: 89 | K31: 86.06666667 | L31: 89.41441667 | M31: 30
A32: 71 | B32: 化工21-3班 | C32: 2021010440 | D32: 于瑛琦 | E32: 110.5866667 | F32: 83.82829268 | G32: 83.74 | H32: 70.00% | I32: 82.58536585 | J32: 88.8 | K32: 83.82829268 | L32: 89.17113821 | M32: 31
A33: 25 | B33: 化工21-2班 | C33: 2021010508 | D33: 鞠明錡 | E33: 103.8870968 | F33: 86.3697561 | G33: 78.1 | H33: 85.00% | I33: 86.01219512 | J33: 87.8 | K33: =I33*0.8+J33*0.2 -> 86.3697561 | L33: 89.04624862 | M33: 32
A34: 41 | B34: 化工21-1班 | C34: 2021010378 | D34: 王鹏琪 | E34: 100.01875 | F34: 86.13409962 | G34: 82.12 | H34: 81.82% | I34: 82.52873563 | J34: 80.55555556 | K34: 82.13409962 | L34: 88.50961973 | M34: 33
A35: 1 | B35: 化工21-2班 | C35: 2021010196 | D35: 项宇 | E35: 102.1064516 | F35: 84.18191214 | G35: 91.6 | H35: 76.19% | I35: 81.61627907 | J35: 79.44444444 | K35: =I35*0.8+J35*0.2 -> 81.18191214 | L35: 88.50862882 | M35: 34
A36: 90 | B36: 化工21-3班 | C36: 2021010504 | D36: 张春雨 | E36: 103.12 | F36: 84.94926829 | G36: 78.16 | H36: 80.00% | I36: 84.53658537 | J36: 86.6 | K36: 84.94926829 | L36: 87.9044878 | M36: 35
A37: 67 | B37: 化工21-3班 | C37: 2021010435 | D37: 张芳 | E37: 99.58 | F37: 84.36341463 | G37: 88.48 | H37: 70.00% | I37: 82.82926829 | J37: 90.5 | K37: 84.36341463 | L37: 87.81839024 | M37: 36
A38: 37 | B38: 化工21-1班 | C38: 2021010369 | D38: 赵欣茹 | E38: 105.01875 | F38: 82.54588235 | G38: 88.12 | H38: 80.95% | I38: 81.48235294 | J38: 86.8 | K38: 82.54588235 | L38: 87.59786765 | M38: 37
A39: 30 | B39: 化工21-2班 | C39: 2021010516 | D39: 韩昌金 | E39: 108.3129032 | F39: 82.99853659 | G39: 76 | H39: 50.00% | I39: 78.57317073 | J39: 78.2 | K39: =I39*0.8+J39*0.2 -> 78.49853659 | L39: 87.36155625 | M39: 38
A40: 29 | B40: 化工21-2班 | C40: 2021010512 | D40: 麦尔旦·买买提江 | E40: 105.7709677 | F40: 84.90731707 | G40: 67.48 | H40: 90.00% | I40: 84.13414634 | J40: 88 | K40: =I40*0.8+J40*0.2 -> 84.90731707 | L40: 87.3373155 | M40: 39
A41: 76 | B41: 化工21-3班 | C41: 2021010449 | D41: 宝佳庆 | E41: 107.04 | F41: 81.56585366 | G41: 85.42 | H41: 70.00% | I41: 81.70731707 | J41: 81 | K41: 81.56585366 | L41: 87.04609756 | M41: 40
A42: 8 | B42: 化工21-2班 | C42: 2021010400 | D42: 马颖 | E42: 115.0865558 | F42: 76.09090909 | G42: 106.96 | H42: 52.38% | I42: 75.36363636 | J42: 64 | K42: =I42*0.8+J42*0.2 -> 73.09090909 | L42: =E42*0.2+F42*0.7+G42*0.1 -> 86.97694752 | M42: 41
A43: 40 | B43: 化工21-1班 | C43: 2021010372 | D43: 马雪 | E43: 104.11875 | F43: 81.62380952 | G43: 89.86 | H43: 85.00% | I43: 81.6547619 | J43: 81.5 | K43: 81.62380952 | L43: 86.94641667 | M43: 42
A44: 2 | B44: 化工21-2班 | C44: 2021010373 | D44: 高菀珠 | E44: 102.9935484 | F44: 82.14146341 | G44: 85.48 | H44: 65.00% | I44: 82.42682927 | J44: 81 | K44: =I44*0.8+J44*0.2 -> 82.14146341 | L44: 86.64573407 | M44: 43
A45: 64 | B45: 化工21-1班 | C45: 2021010611 | D45: 刘杨 | E45: 102.41875 | F45: 83.23478261 | G45: 76.84 | H45: 77.27% | I45: 83.04347826 | J45: 84 | K45: 83.23478261 | L45: 86.43209783 | M45: 44
A46: 69 | B46: 化工21-3班 | C46: 2021010437 | D46: 刘思雨 | E46: 103.08 | F46: 81.83609756 | G46: 83.32 | H46: 70.00% | I46: 82.19512195 | J46: 80.4 | K46: 81.83609756 | L46: 86.23326829 | M46: 45
A47: 28 | B47: 化工21-2班 | C47: 2021010511 | D47: 黄德胜 | E47: 103.6354839 | F47: 82.08390244 | G47: 78.4 | H47: 75.00% | I47: 83.80487805 | J47: 75.2 | K47: =I47*0.8+J47*0.2 -> 82.08390244 | L47: 86.02582848 | M47: 46
A48: 70 | B48: 化工21-3班 | C48: 2021010438 | D48: 卢宇晶 | E48: 100.04 | F48: 82.83804878 | G48: 78.94 | H48: 75.00% | I48: 81.59756098 | J48: 87.8 | K48: 82.83804878 | L48: 85.88863415 | M48: 47
A49: 33 | B49: 化工21-1班 | C49: 2021010363 | D49: 冶艳 | E49: 99.51875 | F49: 82.29904762 | G49: 76.78 | H49: 85.00% | I49: 81.27380952 | J49: 86.4 | K49: 82.29904762 | L49: 85.19108333 | M49: 48
A50: 20 | B50: 化工21-2班 | C50: 2021010418 | D50: 杨琨 | E50: 103.0354839 | F50: 81.66829268 | G50: 74.14 | H50: 65.00% | I50: 79.08536585 | J50: 92 | K50: =I50*0.8+J50*0.2 -> 81.66829268 | L50: 85.18890165 | M50: 49
A51: 19 | B51: 化工21-2班 | C51: 2021010417 | D51: 姬方剑 | E51: 106.4419355 | F51: 80.07609756 | G51: 77.8 | H51: 75.00% | I51: 78.69512195 | J51: 85.6 | K51: =I51*0.8+J51*0.2 -> 80.07609756 | L51: 85.12165539 | M51: 50
A52: 93 | B52: 化工21-3班 | C52: 2021010522 | D52: 张晓生 | E52: 99.4 | F52: 81.54926829 | G52: 79.84 | H52: 80.00% | I52: 81.03658537 | J52: 83.6 | K52: 81.54926829 | L52: 84.9484878 | M52: 51
A53: 75 | B53: 化工21-3班 | C53: 2021010448 | D53: 李奇 | E53: 107.22 | F53: 78.88292683 | G53: 79.6 | H53: 60.00% | I53: 78.35365854 | J53: 81 | K53: 78.88292683 | L53: 84.62204878 | M53: 52
A54: 49 | B54: 化工21-1班 | C54: 2021010394 | D54: 王浩熙 | E54: 106.31875 | F54: 77.76 | G54: 82.96 | H54: 55.00% | I54: 78.25 | J54: 75.8 | K54: 77.76 | L54: 83.99175 | M54: 53
A55: 82 | B55: 化工21-3班 | C55: 2021010459 | D55: 张盛 | E55: 101.4 | F55: 79.67317073 | G55: 78.46 | H55: 55.00% | I55: 77.84146341 | J55: 87 | K55: 79.67317073 | L55: 83.89721951 | M55: 54
A56: 77 | B56: 化工21-3班 | C56: 2021010451 | D56: 陈乐宁 | E56: 102.92 | F56: 80.31414634 | G56: 66.88 | H56: 70.00% | I56: 78.79268293 | J56: 86.4 | K56: 80.31414634 | L56: 83.49190244 | M56: 55
A57: 87 | B57: 化工21-3班 | C57: 2021010499 | D57: 董小娜 | E57: 103.1 | F57: 78.3004878 | G57: 80.56 | H57: 50.00% | I57: 77.97560976 | J57: 79.6 | K57: 78.3004878 | L57: 83.48634146 | M57: 56
A58: 4 | B58: 化工21-2班 | C58: 2021010396 | D58: 范静琳 | E58: 103.4612903 | F58: 77.96 | G58: 80.68 | H58: 60.00% | I58: 78.5 | J58: 75.8 | K58: =I58*0.8+J58*0.2 -> 77.96 | L58: 83.33225806 | M58: 57
A59: 89 | B59: 化工21-3班 | C59: 2021010503 | D59: 杨依璇 | E59: 101.44 | F59: 78.23317073 | G59: 80.32 | H59: 60.00% | I59: 77.34146341 | J59: 81.8 | K59: 78.23317073 | L59: 83.08321951 | M59: 58
A60: 43 | B60: 化工21-1班 | C60: 2021010383 | D60: 何亚飞 | E60: 100.8520833 | F60: 76.84571429 | G60: 87.58 | H60: 47.62% | I60: 75.7 | J60: 81.42857143 | K60: 76.84571429 | L60: =E60*0.2+F60*0.7+G60*0.1 -> 82.72041667 | M60: 59
A61: 94 | B61: 化工21-3班 | C61: 2021010523 | D61: 张野 | E61: 102.8 | F61: 78.89707317 | G61: 68.92 | H61: 40.00% | I61: 75.14634146 | J61: 71.4 | K61: 74.39707317 | L61: 82.67995122 | M61: 60
A62: 62 | B62: 化工21-1班 | C62: 2021010491 | D62: 詹宇航 | E62: 99.01875 | F62: 78.2952381 | G62: 76 | H62: 57.89% | I62: 76.61904762 | J62: 85 | K62: 78.2952381 | L62: 82.21041667 | M62: 61
A63: 46 | B63: 化工21-1班 | C63: 2021010388 | D63: 李奕飞 | E63: 101.8854167 | F63: 77.93904762 | G63: 72.64 | H63: 65.00% | I63: 78.52380952 | J63: 75.6 | K63: 77.93904762 | L63: =E63*0.2+F63*0.7+G63*0.1 -> 82.19841667 | M63: 62
A64: 12 | B64: 化工21-2班 | C64: 2021010405 | D64: 霍子云 | E64: 103.383871 | F64: 75.96888889 | G64: 83.02 | H64: 52.17% | I64: 75.71111111 | J64: 77 | K64: =I64*0.8+J64*0.2 -> 75.96888889 | L64: 82.15699642 | M64: 63
A65: 39 | B65: 化工21-1班 | C65: 2021010371 | D65: 买然木古力·艾合买提 | E65: 103.91875 | F65: 75.84761905 | G65: 81.94 | H65: 40.00% | I65: 75.55952381 | J65: 77 | K65: 75.84761905 | L65: 82.07108333 | M65: 64
A66: 17 | B66: 化工21-2班 | C66: 2021010415 | D66: 王贤东 | E66: 103.3258065 | F66: 76.46731707 | G66: 77.98 | H66: 50.00% | I66: 75.63414634 | J66: 79.8 | K66: =I66*0.8+J66*0.2 -> 76.46731707 | L66: 81.99028324 | M66: 65
A67: 48 | B67: 化工21-1班 | C67: 2021010391 | D67: 钱俊宇 | E67: 101.01875 | F67: 76.49333333 | G67: 82.36 | H67: 45.00% | I67: 75.16666667 | J67: 81.8 | K67: 76.49333333 | L67: 81.98508333 | M67: 66
A68: 23 | B68: 化工21-2班 | C68: 2021010430 | D68: 应郁香 | E68: 103.5 | F68: 75.06634146 | G68: 82.36 | H68: 50.00% | I68: 76.18292683 | J68: 70.6 | K68: =I68*0.8+J68*0.2 -> 75.06634146 | L68: 81.48243902 | M68: 67
A69: 26 | B69: 化工21-2班 | C69: 2021010509 | D69: 谢富亮 | E69: 103.7322581 | F69: 75.23306233 | G69: 78.52 | H69: 40.00% | I69: 74.90243902 | J69: 76.55555556 | K69: =I69*0.8+J69*0.2 -> 75.23306233 | L69: 81.26159524 | M69: 68
A70: 16 | B70: 化工21-2班 | C70: 2021010414 | D70: 朱思学 | E70: 101.0935484 | F70: 75.76236934 | G70: 76 | H70: 40.00% | I70: 75.02439024 | J70: 78.71428571 | K70: =I70*0.8+J70*0.2 -> 75.76236934 | L70: 80.85236821 | M70: 69
A71: 3 | B71: 化工21-2班 | C71: 2021010375 | D71: 李润桐 | E71: 100.4387097 | F71: 74.98181818 | G71: 81.22 | H71: 47.62% | I71: 73.47727273 | J71: 81 | K71: =I71*0.8+J71*0.2 -> 74.98181818 | L71: 80.69701466 | M71: 70
A72: 63 | B72: 化工21-1班 | C72: 2021010505 | D72: 杨志刚 | E72: 99.51875 | F72: 74.98285714 | G72: 75.64 | H72: 47.37% | I72: 75.92857143 | J72: 71.2 | K72: 74.98285714 | L72: 79.95575 | M72: 71
A73: 54 | B73: 化工21-1班 | C73: 2021010480 | D73: 魏博轩 | E73: 99.01875 | F73: 73.68380952 | G73: 81.52 | H73: 40.00% | I73: 72.9047619 | J73: 76.8 | K73: 73.68380952 | L73: 79.53441667 | M73: 72
A74: 24 | B74: 化工21-2班 | C74: 2021010507 | D74: 高鑫 | E74: 101.4225806 | F74: 73.15609756 | G74: 76 | H74: 15.00% | I74: 70.69512195 | J74: 83 | K74: =I74*0.8+J74*0.2 -> 73.15609756 | L74: 79.09378442 | M74: 73
A75: 60 | B75: 化工21-1班 | C75: 2021010489 | D75: 闫珅 | E75: 101.01875 | F75: 71.6 | G75: 76 | H75: 35.00% | I75: 70.5 | J75: 76 | K75: 71.6 | L75: 77.92375 | M75: 74
A76: 10 | B76: 化工21-2班 | C76: 2021010402 | D76: 迪力努尔·哈尼亚孜 | E76: 103.5387097 | F76: 70.00722892 | G76: 79.24 | H76: 23.81% | I76: 68.75903614 | J76: 75 | K76: =I76*0.8+J76*0.2 -> 70.00722892 | L76: 77.63680218 | M76: 75
A77: 47 | B77: 化工21-1班 | C77: 2021010390 | D77: 彭孝杨 | E77: 99.01875 | F77: 74.64571429 | G77: 54.64 | H77: 55.00% | I77: 73.85714286 | J77: 77.8 | K77: 74.64571429 | L77: 77.51975 | M77: 76
A78: 83 | B78: 化工21-3班 | C78: 2021010460 | D78: 庄宏锐 | E78: 98.42 | F78: 71.9047619 | G78: 69.88 | H78: 38.10% | I78: 72.88095238 | J78: 68 | K78: 71.9047619 | L78: 77.00533333 | M78: 77
A79: 6 | B79: 化工21-2班 | C79: 2021010398 | D79: 王雅靖 | E79: 107.783871 | F79: 67.57560976 | G79: 80.86 | H79: 30.00% | I79: 65.7195122 | J79: 75 | K79: =I79*0.8+J79*0.2 -> 67.57560976 | L79: 76.94570102 | M79: 78
A80: 58 | B80: 化工21-1班 | C80: 2021010485 | D80: 刘羲阳 | E80: 104.8520833 | F80: 68.26095238 | G80: 81.16 | H80: 26.32% | I80: 69.47619048 | J80: 63.4 | K80: 68.26095238 | L80: 76.86908333 | M80: 79
A81: 15 | B81: 化工21-2班 | C81: 2021010410 | D81: 李梓轩 | E81: 105.3645161 | F81: 68.76097561 | G81: 76 | H81: 15.00% | I81: 68.95121951 | J81: 68 | K81: =I81*0.8+J81*0.2 -> 68.76097561 | L81: 76.80558615 | M81: 80
A82: 42 | B82: 化工21-1班 | C82: 2021010379 | D82: 吴阳 | E82: 99.51875 | F82: 68.48571429 | G82: 85.12 | H82: 26.32% | I82: 68.67857143 | J82: 67.71428571 | K82: 68.48571429 | L82: 76.35575 | M82: 81
A83: 7 | B83: 化工21-2班 | C83: 2021010399 | D83: 李文喧 | E83: 107.3645161 | F83: 67.07111111 | G83: 79 | H83: 22.73% | I83: 65.98888889 | J83: 71.4 | K83: =I83*0.8+J83*0.2 -> 67.07111111 | L83: 76.322681 | M83: 82
A84: 74 | B84: 化工21-3班 | C84: 2021010447 | D84: 冷明洋 | E84: 98.84 | F84: 69.33658537 | G84: 79.66 | H84: 25.00% | I84: 70.17073171 | J84: 66 | K84: 69.33658537 | L84: 76.26960976 | M84: 83
A85: 81 | B85: 化工21-3班 | C85: 2021010456 | D85: 刘洋阳 | E85: 100.2 | F85: 68.20316832 | G85: 76.42 | H85: 30.43% | I85: 67.6039604 | J85: 70.6 | K85: 68.20316832 | L85: 75.42421782 | M85: 84
A86: 73 | B86: 化工21-3班 | C86: 2021010446 | D86: 周江楠 | E86: 101.92 | F86: 66.66545455 | G86: 82.12 | H86: 19.05% | I86: 66.18181818 | J86: 68.6 | K86: 66.66545455 | L86: 75.26181818 | M86: 85
A87: 78 | B87: 化工21-3班 | C87: 2021010452 | D87: 陈杰 | E87: 98.82 | F87: 69.05272727 | G87: 71.5 | H87: 19.05% | I87: 67.71590909 | J87: 74.4 | K87: 69.05272727 | L87: 75.25090909 | M87: 86
A88: 22 | B88: 化工21-2班 | C88: 2021010422 | D88: 孙钰翔 | E88: 104.583871 | F88: 66.89268293 | G88: 74.62 | H88: 10.00% | I88: 66.36585366 | J88: 69 | K88: =I88*0.8+J88*0.2 -> 66.89268293 | L88: 75.20365224 | M88: 87
A89: 57 | B89: 化工21-1班 | C89: 2021010484 | D89: 李梓枫 | E89: 99.51875 | F89: 68.13028571 | G89: 72.1 | H89: 20.00% | I89: 66.52 | J89: 74.57142857 | K89: 68.13028571 | L89: 74.80495 | M89: 88
A90: 61 | B90: 化工21-1班 | C90: 2021010490 | D90: 游洋 | E90: 99.01875 | F90: 66.56744186 | G90: 76.06 | H90: 17.65% | I90: 68.20930233 | J90: 60 | K90: 66.56744186 | L90: 74.0069593 | M90: 89
A91: 21 | B91: 化工21-2班 | C91: 2021010421 | D91: 倪嘉义 | E91: 102.4677419 | F91: 68.24596273 | G91: 54.4 | H91: 28.57% | I91: 67.02173913 | J91: 73.14285714 | K91: =I91*0.8+J91*0.2 -> 68.24596273 | L91: 73.7057223 | M91: 90
A92: 44 | B92: 化工21-1班 | C92: 2021010384 | D92: 贾坤 | E92: 99.01875 | F92: 66 | G92: 74.56 | H92: 16.67% | I92: 66.5 | J92: 64 | K92: 66 | L92: 73.45975 | M92: 91
A93: 59 | B93: 化工21-1班 | C93: 2021010488 | D93: 向卫 | E93: 98.61875 | F93: 65.86677368 | G93: 73.96 | H93: 30.00% | I93: 67.79775281 | J93: 58.14285714 | K93: 65.86677368 | L93: 73.22649157 | M93: 92
A94: 56 | B94: 化工21-1班 | C94: 2021010483 | D94: 丁致远 | E94: 99.01875 | F94: 65.46666667 | G94: 73.18 | H94: 16.67% | I94: 64.54761905 | J94: 69.14285714 | K94: 65.46666667 | L94: 72.94841667 | M94: 93
A95: 55 | B95: 化工21-1班 | C95: 2021010481 | D95: 李翱翔 | E95: 98.71875 | F95: 64.71145631 | G95: 75.46 | H95: 16.67% | I95: 62.68932039 | J95: 72.8 | K95: 64.71145631 | L95: 72.58776942 | M95: 94
A96: 85 | B96: 化工21-3班 | C96: 2021010495 | D96: 唐安雅 | E96: 99.62 | F96: 63.48421053 | G96: 68.92 | H96: 9.09% | I96: 63.10526316 | J96: 65 | K96: 63.48421053 | L96: 71.25494737 | M96: 95
A97: 96 | B97: 化工21-3班 | C97: 2021010635 | D97: 潘瑞彬 | E97: 103.02 | F97: 52.86336634 | G97: 84.28 | H97: 20.83% | I97: 66.07920792 | J97: 0 | K97: 52.86336634 | L97: 66.03635644 | M97: 96
